bitfinex/quotes_ETHUSD_20260102
["timestamp","ask_amount","ask_price","bid_price","bid_amount"]
[1767318608040,2.39005485,3003.5,3002.8,1.26833021]
[1767318608200,2.39005485,3003.5,3003.0,1.26833021]
[1767318608724,2.39005485,3003.5,3003.2,1.26833021]
[1767318609936,2.39005485,3003.7,3003.2,1.26833021]
[1767318610244,0.001,3003.8,3003.3,1.26833021]
[1767318611144,0.001,3003.8,3002.9,0.79290023]
[1767318611145,2.39005485,3003.7,3002.9,0.79290023]
[1767318611307,2.39005485,3003.7,3003.0,4.59825909]
[1767318611901,2.39005485,3003.7,3003.0,1.26833021]
[1767318614231,2.39005485,3003.7,3003.2,1.26833021]
[1767318614429,2.39205485,3003.7,3003.2,1.26833021]
[1767318615213,0.001,3003.8,3003.1,3.36319136]
[1767318615403,0.001,3003.8,3003.3,1.26633021]
[1767318615814,2.39105485,3003.8,3003.3,1.26633021]
[1767318619599,2.39105485,3003.8,3003.4,1.26633021]
[1767318619903,0.001,3003.8,3003.4,1.26633021]
[1767318620443,2.39105485,3004.0,3003.4,1.26533021]
[1767318620641,2.39105485,3004.0,3003.5,1.26533021]
[1767318621607,2.39205485,3003.8,3003.5,1.26533021]
[1767318623241,2.39205485,3003.8,3003.2,1.60164935]
[1767318623417,2.39205485,3003.8,3003.2,1.26533021]
[1767318640863,0.002,3003.8,3003.2,1.26533021]
[1767318641364,2.45751274,3003.8,3003.2,1.26533021]
[1767318644064,2.45751274,3003.8,3003.3,1.26533021]
[1767318644363,0.002,3003.8,3003.5,1.26533021]
[1767318644568,2.45651274,3004.0,3003.7,1.26333021]
[1767318651363,2.45651274,3004.0,3003.7,1.29662248]
[1767318653167,2.45651274,3004.0,3003.7,1.26333021]
[1767318654440,2.45651274,3004.0,3003.7,1.29662248]
[1767318655350,2.45651274,3004.0,3003.7,1.26333021]
[1767318656344,2.45651274,3004.0,3003.3,3.32965165]
[1767318656345,2.45651274,3004.0,3003.4,1.26333021]
[1767318656544,2.45651274,3004.0,3003.5,1.26333021]
[1767318660474,2.45651274,3004.0,3003.5,1.26433021]
[1767318662012,2.49028946,3004.2,3003.8,3.87543568]
[1767318662145,2.49028946,3004.4,3004.0,1.26333021]
[1767318663975,2.49028946,3004.4,3004.0,1.7772068]
[1767318664851,2.49028946,3004.4,3004.1,1.26333021]
[1767318665045,2.49128946,3004.6,3004.1,1.26333021]
[1767318670824,0.001,3005.0,3004.1,1.26333021]
[1767318670825,0.001,3005.0,3004.6,1.26233021]
[1767318671117,0.001,3005.0,3004.5,3.87543568]
[1767318671118,0.001,3005.0,3004.7,1.7761068]
[1767318672382,2.49028946,3004.9,3004.3,1.26233021]
[1767318672582,2.49028946,3004.9,3004.0,5.10508872]
[1767318672770,2.49028946,3004.9,3004.1,1.26233021]
[1767318674719,2.49028946,3004.9,3004.1,3.32873117]
[1767318674901,2.49028946,3004.9,3004.4,1.26233021]
[1767318675097,2.49028946,3004.9,3004.5,1.7761068]
[1767318676024,2.49028946,3004.9,3004.5,1.26233021]
[1767318676394,2.49028946,3004.9,3004.1,1.26233021]
[1767318676918,2.49028946,3004.9,3004.2,1.26233021]
[1767318677727,2.49228946,3004.9,3004.2,1.26233021]
[1767318680120,2.49228946,3004.9,3004.2,3.32867213]
[1767318680320,2.49228946,3004.9,3004.4,1.26233021]
[1767318688700,2.49228946,3004.9,3004.1,3.32873505]
[1767318688701,2.49228946,3004.9,3004.0,3.84374515]
[1767318689022,2.49228946,3004.9,3004.1,1.26233021]
[1767318689722,2.49228946,3004.9,3004.0,0.51487659]
[1767318689723,2.32524209,3004.8,3004.0,1.26333021]
[1767318689896,2.32524209,3004.7,3004.0,1.26333021]
[1767318690419,2.32524209,3004.7,3004.1,1.26233021]
[1767318692325,2.32724209,3004.9,3004.2,1.29561694]
[1767318694728,2.32724209,3004.9,3004.3,1.26233021]
[1767318695830,0.875,3005.0,3004.4,1.29561472]
[1767318695831,2.32624209,3005.0,3004.4,1.29561472]
[1767318696032,2.32624209,3005.0,3004.6,1.26233021]
[1767318697137,2.32624209,3005.0,3004.6,1.29561251]
[1767318698512,2.32624209,3005.0,3004.6,1.26233021]
[1767318698712,0.001,3005.1,3004.6,1.26133021]
[1767318698918,0.001,3005.1,3004.5,3.82403964]
[1767318698919,0.001,3005.1,3004.8,1.26133021]
[1767318701118,2.32724209,3005.3,3004.8,1.25933021]
[1767318701305,0.002,3005.3,3004.8,1.25933021]
[1767318701944,2.32724209,3005.3,3004.8,1.25933021]
[1767318704033,2.32724209,3005.1,3004.8,1.25933021]
[1767318718444,2.32724209,3005.1,3004.5,1.72174792]
[1767318719271,2.32724209,3005.1,3004.6,0.59241297]
[1767318720270,2.32724209,3005.1,3004.6,1.85174318]
[1767318720442,2.32724209,3005.1,3004.8,0.001]
[1767318722375,2.32724209,3005.1,3004.5,0.0332834]
[1767318722670,0.002,3005.1,3004.6,1.26033021]
[1767318722971,0.002,3005.2,3004.7,1.25833021]
[1767318727085,2.40149893,3005.2,3004.7,1.25833021]
[1767318728988,2.40149893,3005.2,3004.5,1.25833021]
[1767318729167,2.40149893,3005.2,3004.6,0.001]
[1767318729684,2.40149893,3005.2,3004.6,1.25933021]
[1767318746422,2.40149893,3005.2,3004.6,3.32920835]
[1767318746725,2.40149893,3005.2,3004.7,1.25833021]
[1767318748022,0.002,3005.2,3004.7,1.25833021]
[1767318748221,0.002,3005.2,3004.8,1.25833021]
[1767318748627,2.25937702,3005.2,3004.8,1.25833021]
[1767318762740,2.25937702,3005.2,3004.8,1.25933021]
[1767318765645,2.25937702,3005.2,3004.8,0.001]
[1767318765823,2.25937702,3005.2,3004.6,0.001]
[1767318767548,2.25937702,3005.2,3004.6,1.26033021]
[1767318773551,2.25937702,3005.2,3004.6,0.54736645]
[1767318773856,2.25937702,3005.2,3004.7,1.25933021]
[1767318777532,2.25937702,3005.2,3004.6,0.001]
[1767318780958,2.25937702,3005.2,3004.6,1.26033021]
[1767318783947,2.25937702,3005.2,3004.3,0.001]
[1767318783948,2.36550987,3004.8,3004.3,0.001]
[1767318784535,2.36550987,3004.8,3004.5,0.001]
[1767318784841,2.36550987,3004.8,3004.3,0.001]
[1767318789935,2.36550987,3004.8,3004.0,0.001]
[1767318789936,2.36550987,3004.6,3004.0,1.26333021]
[1767318793581,2.36550987,3004.6,3004.1,1.26433021]
[1767318805578,2.36750987,3004.6,3004.1,1.26433021]
[1767318816988,2.36750987,3004.6,3004.0,0.001]
[1767318817366,2.36750987,3004.6,3004.0,1.26533021]
[1767318819489,2.36750987,3004.6,3004.0,0.001]
[1767318819696,2.60446086,3004.6,3004.0,0.001]
[1767318820400,2.60446086,3004.6,3004.0,1.26533021]
[1767318820608,2.36750987,3004.6,3004.0,1.26533021]
[1767318879217,0.874,3005.0,3004.6,1.34014299]
[1767318879506,2.42021475,3005.2,3004.8,1.34014299]
[1767318879695,2.74983623,3005.2,3004.8,1.34014299]
[1767318879877,2.74983623,3005.2,3004.4,3.87401361]
[1767318879878,2.74983623,3005.2,3004.5,2.48698483]
[1767318882508,2.42021475,3005.2,3004.5,2.48698483]
[1767318891660,2.41821475,3005.1,3004.5,2.48698483]
[1767318896228,2.49925694,3004.9,3004.2,3.35836506]
[1767318896430,2.49925694,3004.9,3004.2,2.35918273]
[1767318897029,2.49925694,3004.9,3004.0,3.32982455]
[1767318897228,2.49925694,3004.5,3004.0,0.001]
[1767318899848,2.49925694,3004.5,3004.0,2.36018273]
[1767318900255,2.49925694,3004.5,3004.0,0.001]
[1767318900464,2.49925694,3004.3,3003.8,2.35918273]
[1767318900761,2.49925694,3004.3,3003.8,2.92811989]
[1767318900954,2.49925694,3004.5,3003.8,2.92811989]
[1767318901456,2.49925694,3004.5,3003.9,2.35918273]
[1767318902742,2.49925694,3004.4,3003.7,2.35918273]
[1767318905072,2.49925694,3004.2,3003.7,2.35918273]
[1767318905761,2.49925694,3004.2,3003.6,0.001]
[1767318905952,2.49925694,3004.2,3003.6,2.36018273]
[1767318906170,2.49925694,3004.2,3003.6,0.001]
[1767318906961,2.49925694,3004.2,3003.9,0.001]
[1767318907161,2.49925694,3004.0,3003.9,0.001]
[1767318908175,2.49925694,3004.0,3003.6,0.001]
[1767318912176,2.49925694,3004.0,3003.4,0.001]
[1767318915884,2.49925694,3004.0,3003.4,2.36018273]
[1767318916593,2.49925694,3003.9,3003.4,2.36018273]
[1767318920095,2.49925694,3003.8,3003.4,0.001]
[1767318925069,2.49925694,3003.8,3003.4,2.28459295]
[1767318927011,2.31723037,3003.7,3003.4,0.001]
[1767318927381,2.31723037,3003.7,3003.3,0.001]
[1767318929123,2.31723037,3003.7,3003.1,2.28459295]
[1767318929286,2.31723037,3003.5,3003.1,2.28459295]
[1767318930519,2.31723037,3003.5,3003.3,0.001]
[1767318937284,2.31723037,3003.5,3003.1,0.001]
[1767318938435,2.31723037,3003.5,3003.3,0.001]
[1767318939815,2.31723037,3003.5,3003.1,0.001]
[1767318945025,2.31723037,3003.5,3003.1,2.28459295]
[1767318945227,3.19123037,3003.7,3003.1,2.28459295]
[1767318945724,2.31723037,3003.6,3002.9,2.28359295]
[1767318945922,3.31694878,3003.6,3002.9,2.28359295]
[1767318946404,2.31723037,3003.5,3002.9,2.28359295]
[1767318946724,2.31723037,3003.5,3003.0,0.001]
[1767318946931,3.11117698,3003.5,3003.1,2.28359295]
[1767318951408,2.31723037,3003.5,3003.1,2.28359295]
[1767318954739,2.31923037,3003.5,3003.1,2.28359295]
[1767318966455,0.002,3003.8,3003.1,2.35384753]
[1767318967117,0.002,3003.8,3003.2,2.35384753]
[1767318967342,2.36019447,3003.8,3003.3,2.35384753]
[1767318971240,0.002,3003.8,3003.3,2.35384753]
[1767318971445,2.36019447,3004.2,3003.4,2.35384753]
[1767318972951,2.36019447,3004.2,3003.5,3.32944897]
[1767318973249,0.002,3004.2,3003.6,2.35384753]
[1767318973454,2.35819447,3004.4,3003.8,2.35384753]
[1767318976845,2.35819447,3004.4,3003.8,3.32911159]
[1767318977049,2.36019447,3004.6,3003.9,2.35384753]
[1767318978174,0.002,3004.4,3003.9,2.35384753]
[1767318981737,2.35819447,3004.5,3003.9,2.35384753]
[1767318981939,2.35819447,3004.5,3004.1,2.35384753]
[1767318983265,2.35819447,3004.5,3003.8,3.32910123]
[1767318983266,2.35819447,3004.5,3003.9,2.35384753]
[1767318983429,2.35819447,3004.5,3003.7,0.56832965]
[1767318983430,2.35819447,3004.5,3003.7,2.92217718]
[1767318983974,2.35819447,3004.5,3003.7,0.56832965]
[1767318984273,2.35819447,3004.5,3003.7,2.88258176]
[1767318984483,2.25259508,3004.4,3003.7,2.88258176]
[1767318985179,2.25259508,3004.4,3003.7,2.31425211]
[1767318986074,2.25259508,3004.4,3003.7,3.3292193]
[1767318986279,2.25259508,3004.4,3003.8,2.31425211]
[1767318986984,2.25459508,3004.4,3003.8,2.31425211]
[1767318993983,2.25459508,3004.4,3003.9,2.31425211]
[1767318994191,2.25459508,3004.4,3004.1,2.31425211]
[1767318994389,0.002,3004.4,3004.1,2.31425211]
[1767319004188,2.25459508,3004.4,3004.1,2.31425211]
[1767319006702,0.002,3004.4,3004.1,2.31425211]
[1767319008276,2.25459508,3004.6,3004.1,2.31425211]
[1767319011880,0.002,3004.4,3004.1,2.31425211]
[1767319012079,0.002,3004.4,3004.2,2.31425211]
[1767319014711,0.002,3004.4,3004.0,2.28575044]
[1767319015910,2.49437783,3004.4,3004.0,2.28575044]
[1767319021227,2.49437783,3004.4,3003.8,0.001]
[1767319028324,2.49437783,3004.4,3003.8,2.28575044]
[1767319041225,2.49437783,3004.4,3003.8,5.61486355]
[1767319041440,2.49437783,3004.4,3003.9,2.28475044]
[1767319044639,2.49437783,3004.4,3003.9,2.28575044]
[1767319048451,2.26395135,3004.8,3004.3,2.41606941]
[1767319048621,0.002,3004.8,3004.5,2.41606941]
[1767319048816,2.26195135,3005.0,3004.5,2.41606941]
[1767319049023,0.002,3005.1,3004.5,2.41606941]
[1767319049024,0.002,3005.1,3004.7,2.41606941]
[1767319049730,2.26395135,3005.1,3004.7,2.41606941]
[1767319050552,2.26395135,3005.1,3004.4,2.41606941]
[1767319052054,2.26395135,3005.1,3004.4,2.31606941]
[1767319052652,2.26395135,3005.1,3004.5,2.41606941]
[1767319053355,2.26395135,3005.0,3004.5,2.41606941]
[1767319056060,2.26395135,3005.0,3004.5,2.43765541]
[1767319056249,2.26395135,3005.0,3004.5,3.01427264]
[1767319062264,2.26395135,3005.0,3004.5,2.43765541]
[1767319062666,2.26395135,3005.0,3004.0,2.41606941]
[1767319062667,2.26195135,3004.8,3004.0,2.41606941]
[1767319062967,2.26195135,3004.7,3003.9,3.811]
[1767319063171,2.26195135,3004.7,3004.0,2.41606941]
[1767319069358,2.26195135,3004.6,3003.9,0.001]
[1767319069551,2.26195135,3004.6,3003.8,2.41706941]
[1767319069973,2.26195135,3004.6,3004.0,0.001]
[1767319070142,2.26195135,3004.4,3004.0,0.001]
[1767319076153,2.26195135,3004.4,3004.0,2.43851175]
[1767319078384,2.26395135,3004.4,3004.0,2.43851175]
[1767319085662,2.26395135,3004.4,3004.1,2.43751175]
[1767319085663,0.00100102,3004.4,3004.1,2.43751175]
[1767319086311,2.47129651,3004.4,3004.0,0.001]
[1767319099797,2.47129651,3004.4,3004.0,2.43851175]
[1767319109503,2.47129651,3004.4,3004.0,2.27475077]
[1767319110812,2.47129651,3004.4,3004.0,2.27575077]
[1767319133542,2.47129651,3004.4,3003.9,0.001]
[1767319133838,2.47129651,3004.4,3003.8,3.33010701]
[1767319133839,2.71842616,3004.4,3003.8,0.001]
[1767319134207,2.71842616,3004.4,3003.8,2.497731]
[1767319134535,2.71842616,3004.4,3004.0,0.001]
[1767319134754,2.40530288,3004.2,3004.0,0.001]
[1767319150515,2.40730288,3004.2,3004.0,0.001]
[1767319181790,2.40730288,3004.2,3003.8,0.001]
[1767319181981,2.40730288,3004.2,3003.6,0.001]
[1767319182485,2.40730288,3004.2,3003.6,2.25974079]
[1767319182996,2.40730288,3004.2,3003.9,0.001]
[1767319183282,2.67284624,3004.2,3003.9,0.001]
[1767319187290,2.40730288,3004.2,3003.9,0.001]
[1767319188861,0.24813067,3004.4,3003.9,0.001]
[1767319188862,0.00100102,3004.4,3004.0,2.25874079]
[1767319189160,2.38048174,3004.4,3004.0,2.25874079]
[1767319190094,0.002,3004.2,3004.0,2.25874079]
[1767319194316,0.002,3004.2,3003.9,0.001]
[1767319194687,2.31549548,3004.2,3003.9,0.001]
[1767319198909,2.31549548,3004.2,3003.6,2.27938777]
[1767319199109,2.31549548,3004.2,3003.6,2.59472655]
[1767319200213,2.31549548,3004.2,3003.6,3.64567531]
[1767319200376,2.31549548,3004.2,3003.7,2.27838777]
[1767319201892,2.31549548,3004.2,3003.6,0.001]
[1767319202209,2.31349548,3004.1,3003.1,2.27938777]
[1767319202409,2.31349548,3003.9,3003.1,5.60926807]
[1767319202803,2.31349548,3003.9,3003.2,2.27838777]
[1767319203500,2.31349548,3003.9,3003.5,2.27938777]
[1767319205785,2.31349548,3004.1,3003.5,2.27938777]
[1767319208715,2.31349548,3004.0,3003.2,2.27838777]
[1767319208916,2.54504503,3004.0,3003.2,2.27838777]
[1767319210120,2.54504503,3004.0,3003.5,0.001]
[1767319212122,2.54504503,3004.0,3003.2,2.27838777]
[1767319215403,2.54504503,3004.0,3003.3,2.27838777]
[1767319224630,2.32947907,3003.8,3003.3,2.27838777]
[1767319225629,2.32947907,3003.8,3003.3,2.27938777]
[1767319235444,0.002,3004.0,3003.4,2.36904908]
[1767319235815,2.33147907,3004.0,3003.4,2.36904908]
[1767319236327,0.002,3004.0,3003.4,2.36904908]
[1767319240453,0.23554791,3004.0,3003.4,2.36904908]
[1767319242259,0.23554791,3004.0,3003.4,2.37004908]
[1767319242571,0.002,3004.0,3003.5,3.87621195]
[1767319242722,2.33147907,3004.1,3003.8,2.36904908]
[1767319242723,0.002,3004.1,3003.8,2.36904908]
[1767319243230,2.33147907,3004.2,3003.8,2.36904908]
[1767319245355,0.002,3004.2,3003.8,2.36904908]
[1767319248953,0.00100102,3004.4,3004.0,2.36904908]
[1767319250853,0.002,3004.2,3004.0,2.36904908]
[1767319252953,2.33147907,3004.2,3003.9,2.36904908]
[1767319253257,2.33147907,3004.2,3003.6,2.36904908]
[1767319275180,2.32149205,3004.2,3003.6,2.2642011]
[1767319275377,2.32349205,3004.2,3003.6,2.2642011]
[1767319276682,2.32349205,3004.2,3003.6,0.94718139]
[1767319276858,2.32349205,3004.2,3003.7,2.2642011]
[1767319283288,2.32199205,3004.2,3003.7,2.2642011]
[1767319285395,3.87621195,3004.0,3003.5,0.001]
[1767319285698,2.77486451,3003.9,3003.4,0.001]
[1767319285862,2.38724331,3003.9,3003.4,0.001]
[1767319287996,2.38724331,3003.9,3003.5,2.29057839]
[1767319288801,2.38724331,3003.9,3003.4,0.001]
[1767319294587,2.38724331,3003.9,3003.4,2.29157839]
[1767319295180,2.38724331,3003.9,3003.3,0.001]
[1767319295384,2.38724331,3003.7,3003.3,0.001]
[1767319306021,2.38924331,3003.7,3003.3,0.001]
[1767319313931,2.38924331,3003.7,3003.0,3.33098321]
[1767319313932,2.38924331,3003.7,3003.0,2.44109593]
[1767319314126,2.38148233,3003.6,3003.0,0.001]
[1767319314319,2.38148233,3003.6,3002.8,2.44109593]
[1767319314519,2.38148233,3003.4,3002.8,0.001]
[1767319314724,2.38148233,3003.3,3002.6,2.44109593]
[1767319317619,2.38148233,3003.3,3002.5,0.002]
[1767319317620,2.38148233,3003.2,3002.5,0.002]
[1767319318735,2.38148233,3003.2,3002.4,0.001]
[1767319319045,6.73918226,3003.3,3002.2,2.44109593]
[1767319319046,2.38148233,3002.7,3002.2,0.001]
[1767319320035,2.38148233,3002.7,3002.1,0.001]
[1767319321025,3.3303675,3002.7,3002.1,0.001]
[1767319321235,2.38148233,3002.6,3002.1,0.001]
[1767319321438,2.38148233,3002.6,3001.7,2.44009593]
[1767319321439,2.38148233,3002.4,3001.7,2.44009593]
[1767319321640,2.38148233,3002.4,3001.9,2.44109593]
[1767319329045,2.38148233,3002.4,3001.9,0.001]
[1767319331136,2.38148233,3002.4,3001.7,2.44009593]
[1767319331311,2.38148233,3002.2,3001.7,2.44009593]
[1767319332946,2.38148233,3002.2,3001.5,2.44009593]
[1767319333942,2.38148233,3002.1,3001.4,0.001]
[1767319334328,2.38148233,3002.1,3001.4,2.44109593]
[1767319334646,2.38148233,3001.9,3001.4,2.44109593]
[1767319342048,2.38148233,3001.9,3001.0,3.3321876]
[1767319342049,2.38148233,3001.9,3001.2,2.44009593]
[1767319344457,2.38148233,3001.9,3001.3,2.27100063]
[1767319347758,2.38148233,3001.9,3001.3,2.27300063]
[1767319347961,2.38248233,3001.9,3001.3,2.27300063]
[1767319348163,2.70823056,3001.9,3001.3,2.27300063]
[1767319352776,2.49781454,3001.8,3001.3,0.002]
[1767319352948,2.57764424,3001.8,3000.9,2.27200063]
[1767319353666,2.49781454,3001.5,3000.9,2.27200063]
[1767319353868,2.49781454,3001.3,3000.9,2.27200063]
[1767319356636,2.49781454,3001.3,3000.9,0.001]
[1767319357668,2.49781454,3001.3,3000.8,0.001]
[1767319359251,2.49781454,3001.3,3000.5,2.27100063]
[1767319359652,2.49781454,3001.3,3000.6,2.27200063]
[1767319359851,2.49781454,3001.1,3000.6,2.27200063]
[1767319360282,2.49781454,3001.1,3000.6,0.001]
[1767319361079,2.49781454,3000.9,3000.4,2.27100063]
[1767319362878,2.49781454,3000.9,3000.5,0.002]
[1767319364682,2.49781454,3000.9,3000.5,2.27300063]
[1767319364984,2.83509599,3000.9,3000.5,2.27300063]
[1767319366478,0.6167204,3001.2,3000.5,2.27300063]
[1767319366479,0.6167204,3001.2,3000.6,2.30432729]
[1767319366654,0.001,3001.3,3000.9,2.27100063]
[1767319366848,0.001,3001.3,3001.0,6.1541765]
[1767319367679,0.001,3001.3,3001.0,2.27100063]
[1767319369185,3.37281454,3001.4,3001.1,2.27100063]
[1767319369186,0.875,3001.4,3001.1,2.27100063]
[1767319369362,2.49781454,3001.6,3001.1,2.27100063]
[1767319369564,3.37281454,3001.5,3001.1,2.27100063]
[1767319371081,2.49781454,3001.8,3001.2,3.88317587]
[1767319371286,2.49781454,3001.8,3001.3,2.27100063]
[1767319371588,0.001,3001.9,3001.5,2.27100063]
[1767319372456,2.49881454,3001.9,3001.5,2.27100063]
[1767319373180,0.001,3001.9,3001.5,2.27100063]
[1767319373984,3.18836511,3002.3,3001.7,2.27461336]
[1767319374187,0.32691948,3002.2,3001.7,2.27461336]
[1767319374363,2.31336511,3002.2,3001.7,2.27461336]
[1767319376086,2.31336511,3002.2,3001.8,2.27461336]
[1767319377994,0.875,3002.3,3001.8,2.27461336]
[1767319378185,0.875,3002.3,3001.9,2.27461336]
[1767319379111,0.001,3002.2,3001.9,2.27461336]
[1767319379289,0.875,3002.3,3002.0,6.15778923]
[1767319379494,2.31436511,3002.6,3002.1,2.27461336]
[1767319381170,2.31436511,3002.6,3001.6,3.88317587]
[1767319381394,2.31336511,3002.4,3001.7,2.27461336]
[1767319381869,0.0798297,3002.3,3001.7,2.27461336]
[1767319382075,2.31336511,3002.1,3001.4,3.14961336]
[1767319382294,2.31336511,3002.1,3001.4,2.27461336]
[1767319382474,2.39319481,3002.1,3001.4,2.27461336]
[1767319386720,2.31336511,3002.1,3001.4,2.27461336]
[1767319386927,2.31436511,3002.1,3001.4,2.27461336]
[1767319387294,0.001,3002.1,3001.8,2.27461336]
[1767319387595,0.001,3002.1,3001.5,0.03331667]
[1767319387596,2.31336511,3002.4,3002.0,2.27461336]
[1767319388419,2.31336511,3002.4,3001.8,2.27461336]
[1767319394325,2.31436511,3002.4,3001.8,2.27461336]
[1767319395126,2.31070058,3002.4,3001.7,2.27461336]
[1767319395326,2.31070058,3002.4,3001.8,2.27461336]
[1767319397509,2.31336511,3002.2,3001.8,2.27461336]
[1767319399526,2.31336511,3002.2,3001.6,2.27461336]
[1767319401034,2.31436511,3002.2,3001.4,3.31327719]
[1767319401199,2.31436511,3002.2,3001.5,2.27461336]
[1767319401401,2.31336511,3002.0,3001.5,2.27461336]
[1767319406136,2.31336511,3002.0,3001.4,0.002]
[1767319406304,2.31336511,3002.0,3001.4,2.40665054]
[1767319414234,2.42979271,3001.8,3001.4,0.002]
[1767319414454,2.42979271,3001.6,3001.0,2.40465054]
[1767319416733,2.42979271,3001.6,3001.4,0.002]
[1767319418148,5.84081638,3002.0,3001.4,2.40665054]
[1767319418320,2.42979271,3001.9,3001.4,2.40665054]
[1767319421559,2.42979271,3001.5,3000.9,0.002]
[1767319421731,2.42979271,3001.5,3000.8,0.03332444]
[1767319421732,2.42979271,3001.3,3000.7,2.40465054]
[1767319423723,2.42979271,3001.6,3000.7,2.40465054]
[1767319426062,2.42979271,3001.5,3000.7,2.40465054]
[1767319426360,3.00593064,3001.5,3000.7,2.40465054]
[1767319429030,2.42979271,3001.5,3000.7,2.40465054]
[1767319429263,2.42979271,3001.5,3000.8,2.40465054]
[1767319431570,0.001,3001.6,3000.8,2.43797498]
[1767319431767,0.001,3001.6,3000.8,2.40465054]
[1767319432484,2.43079271,3001.6,3000.8,2.40465054]
[1767319434753,5.63197158,3001.6,3000.8,2.40465054]
[1767319434948,6.52830239,3001.6,3000.8,2.40465054]
[1767319435150,2.29939926,3001.5,3000.8,2.40465054]
[1767319435673,2.29939926,3001.4,3000.8,0.875]
[1767319436187,2.29939926,3001.4,3000.8,3.20668742]
[1767319438759,2.29939926,3001.4,3000.9,2.33168742]
[1767319456504,2.29939926,3001.4,3000.8,0.002]
[1767319456675,2.29939926,3001.4,3000.8,2.33368742]
[1767319457373,2.87059069,3001.4,3000.8,2.33368742]
[1767319464530,2.35188422,3001.3,3000.8,0.002]
[1767319465223,2.35188422,3001.3,3000.6,2.3942653]
[1767319466316,2.35188422,3001.2,3000.6,2.3942653]
[1767319474945,2.35188422,3001.0,3000.6,0.002]
[1767319475109,2.59505561,3001.0,3000.6,0.002]
[1767319475307,2.59505561,3001.0,3000.6,2.3942653]
[1767319476239,2.35188422,3001.0,3000.6,2.3942653]
[1767319476540,0.001,3001.4,3000.7,2.3922653]
[1767319476735,2.35188422,3001.5,3000.7,2.3922653]
[1767319478519,2.35188422,3001.5,3000.8,2.3922653]
[1767319479936,2.35288422,3001.5,3000.8,2.3922653]
[1767319480144,0.001,3001.5,3001.0,2.3922653]
[1767319480314,2.35288422,3001.5,3001.0,2.3922653]
[1767319486272,0.001,3001.6,3001.2,2.3922653]
[1767319486472,0.001,3002.1,3001.2,2.3922653]
[1767319486473,2.35188422,3002.0,3001.2,2.3922653]
[1767319487378,2.35188422,3001.9,3001.2,2.3922653]
[1767319488168,0.001,3001.5,3001.2,2.3922653]
[1767319488372,0.001,3001.5,3001.3,2.3922653]
[1767319488752,3.33201402,3002.1,3001.3,2.3922653]
[1767319489052,2.35188422,3002.0,3001.3,2.3922653]
[1767319489254,2.35188422,3002.0,3001.4,2.3922653]
[1767319489751,0.001,3002.1,3001.4,2.3922653]
[1767319489973,2.35288422,3002.1,3001.4,2.3922653]
[1767319491377,2.35288422,3002.1,3001.5,2.3922653]
[1767319494080,0.001,3002.1,3001.8,2.25016182]
[1767319494386,0.001,3002.2,3001.5,2.25016182]
[1767319494387,2.40149274,3002.2,3001.5,2.25016182]
[1767319495284,2.40149274,3002.2,3001.6,3.88242453]
[1767319495591,0.001,3002.1,3001.8,2.25016182]
[1767319495817,2.40149274,3002.4,3001.7,2.25016182]
[1767319501489,2.40149274,3002.4,3001.9,2.25016182]
[1767319501695,0.001,3002.4,3001.9,2.25016182]
[1767319502024,0.001,3002.4,3002.1,2.25016182]
[1767319505410,2.40149274,3002.6,3001.9,2.25016182]
[1767319505613,0.001,3002.7,3002.1,2.25016182]
[1767319505812,2.40149274,3002.9,3002.1,2.25016182]
[1767319505813,2.40149274,3002.9,3002.5,2.25016182]
[1767319506020,0.001,3002.9,3002.5,2.25016182]
[1767319510192,2.40149274,3002.9,3002.5,2.25016182]
[1767319510595,2.40149274,3002.9,3002.2,2.25016182]
[1767319510814,2.40149274,3002.9,3002.5,0.002]
[1767319511054,2.40049274,3002.8,3002.5,0.002]
[1767319513854,2.40049274,3002.4,3001.7,2.25016182]
[1767319514022,0.0798297,3002.5,3001.5,2.25216182]
[1767319514023,2.40049274,3002.0,3001.5,2.25216182]
[1767319514218,2.40049274,3002.0,3001.5,0.002]
[1767319514928,2.40049274,3002.0,3001.5,2.25216182]
[1767319515226,2.40049274,3002.0,3001.5,2.477378]
[1767319516637,2.40049274,3002.0,3001.5,2.25216182]
[1767319517038,2.40049274,3002.0,3001.5,0.002]
[1767319519760,2.40049274,3001.8,3001.2,0.002]
[1767319519931,2.40049274,3001.6,3001.2,0.002]
[1767319522058,0.96142685,3001.6,3001.0,2.25016182]
[1767319522241,2.40049274,3001.5,3001.0,2.25016182]
[1767319524861,2.40049274,3001.5,3001.1,0.002]
[1767319531364,2.28422172,3001.4,3001.1,0.002]
[1767319531569,2.28422172,3001.3,3001.1,0.002]
[1767319533990,2.28422172,3001.3,3000.8,0.875]
[1767319534184,2.28422172,3001.3,3000.6,0.002]
[1767319534185,2.28422172,3000.9,3000.6,0.002]
[1767319534474,2.28422172,3000.9,3000.6,2.46077567]
[1767319534657,3.88242453,3001.2,3000.6,2.46077567]
[1767319534858,3.0056546,3001.1,3000.6,2.46077567]
[1767319535171,3.88242453,3001.0,3000.5,0.002]
[1767319535355,2.28422172,3000.9,3000.5,2.46077567]
[1767319541423,2.28522172,3000.9,3000.5,2.46077567]
[1767319551239,0.875,3001.8,3000.5,0.002]
[1767319551436,0.0798297,3002.1,3000.6,2.45877567]
[1767319551437,2.28522172,3001.6,3000.6,2.45877567]
[1767319551636,2.28422172,3001.4,3000.6,2.45877567]
[1767319553114,2.28422172,3001.2,3000.6,2.45877567]
[1767319555545,2.40520523,3001.1,3000.5,0.002]
[1767319555734,2.40520523,3000.9,3000.5,0.002]
[1767319556244,2.40520523,3000.9,3000.2,3.18914751]
[1767319556445,2.40520523,3000.9,3000.3,2.31214751]
[1767319556944,2.40520523,3000.9,3000.2,0.002]
[1767319557621,2.40620523,3000.9,3000.2,0.002]
[1767319557939,2.40520523,3000.7,3000.2,0.002]
[1767319560950,2.40520523,3000.6,3000.2,0.002]
[1767319561848,2.40520523,3000.6,3000.2,2.31414751]
[1767319564246,2.40520523,3000.6,3000.2,0.002]
[1767319565656,2.40520523,3000.6,3000.1,0.002]
[1767319565953,2.40520523,3000.4,3000.1,0.002]
[1767319567841,2.40520523,3000.4,3000.1,0.00077361]
[1767319568042,2.40520523,3000.3,2999.8,2.31414751]
[1767319568243,2.40520523,3000.3,2999.8,0.002]
[1767319568454,2.40520523,3000.1,2999.8,0.002]
[1767319570677,2.40520523,3000.1,2999.8,2.31414751]
[1767319570881,2.40520523,3000.4,2999.8,2.31414751]
[1767319572367,2.40520523,3000.4,2999.8,0.002]
[1767319572561,2.40520523,3000.0,2999.7,0.001]
[1767319573150,2.40520523,3000.0,2999.8,0.002]